[Event "Titled Tuesday Blitz June 21 Early 2022"]
[White "Rodchenkov, Sergey D."]
[Black "Kucuksari, Kaan"]
[WhiteFideId "4168712"]
[BlackFideId "6380166"]
[WhiteElo "2293"]
[BlackElo "2305"]
[Result "0-1"]
[Round "10"]
[TimeControl "180+1"]
[Date "2022.06.22"]
[WhiteClock "0:00:06"]
[BlackClock "0:00:07"]

1. e4 {[%clk 0:03:00]}  c6 {[%clk 0:02:56]} 2. d4 {[%clk 0:03:00]}  d5 {[%clk 0:02:57]} 3. e5 {[%clk 0:03:00]}  c5 {[%clk 0:02:56]} 4. dxc5 {[%clk 0:02:59]}  Nc6 {[%clk 0:02:56]} 5. Nf3 {[%clk 0:02:54]}  Bg4 {[%clk 0:02:55]} 6. c3 {[%clk 0:02:54]}  e6 {[%clk 0:02:54]} 7. Be3 {[%clk 0:02:48]}  a6 {[%clk 0:02:53]} 8. Nbd2 {[%clk 0:02:39]}  Nge7 {[%clk 0:02:30]} 9. h3 {[%clk 0:02:27]}  Bxf3 {[%clk 0:02:29]} 10. Nxf3 {[%clk 0:02:27]}  Nf5 {[%clk 0:02:26]} 11. Bd4 {[%clk 0:02:27]}  Qa5 {[%clk 0:01:57]} 12. Qd2 {[%clk 0:02:07]}  Be7 {[%clk 0:01:36]} 13. a3 {[%clk 0:02:00]}  O-O {[%clk 0:01:27]} 14. b4 {[%clk 0:01:59]}  Qc7 {[%clk 0:01:28]} 15. Bd3 {[%clk 0:01:55]}  Nfxd4 {[%clk 0:01:25]} 16. cxd4 {[%clk 0:01:54]}  f6 {[%clk 0:01:25]} 17. exf6 {[%clk 0:01:32]}  Bxf6 {[%clk 0:01:26]} 18. O-O {[%clk 0:01:33]}  Rf7 {[%clk 0:01:15]} 19. Rfe1 {[%clk 0:01:26]}  Raf8 {[%clk 0:00:54]} 20. Bc2 {[%clk 0:00:57]}  Kh8 {[%clk 0:00:23]} 21. Rxe6 {[%clk 0:00:37]}  Be7 {[%clk 0:00:14]} 22. Rae1 {[%clk 0:00:31]}  Rxf3 {[%clk 0:00:12]} 23. gxf3 {[%clk 0:00:31]}  Bf6 {[%clk 0:00:11]} 24. Re8 {[%clk 0:00:22]}  Qf7 {[%clk 0:00:12]} 25. Rxf8+ {[%clk 0:00:14]}  Qxf8 {[%clk 0:00:13]} 26. Bf5 {[%clk 0:00:07]}  Nxd4 {[%clk 0:00:11]} 27. Bg4 {[%clk 0:00:05]}  g6 {[%clk 0:00:09]} 28. f4 {[%clk 0:00:03]}  h5 {[%clk 0:00:09]} 29. Bd1 {[%clk 0:00:03]}  Bg7 {[%clk 0:00:08]} 30. Qe3 {[%clk 0:00:03]}  Kh7 {[%clk 0:00:08]} 31. f5 {[%clk 0:00:03]}  Qxf5 {[%clk 0:00:07]} 32. Kh1 {[%clk 0:00:04]}  Nc6 {[%clk 0:00:06]} 33. Rg1 {[%clk 0:00:04]}  Ne5 {[%clk 0:00:07]} 34. Qg3 {[%clk 0:00:04]}  d4 {[%clk 0:00:07]} 35. f4 {[%clk 0:00:04]}  Nc4 {[%clk 0:00:06]} 36. Be2 {[%clk 0:00:04]}  Ne3 {[%clk 0:00:06]} 37. Qg5 {[%clk 0:00:04]}  Qe4+ {[%clk 0:00:06]} 38. Kh2 {[%clk 0:00:05]}  Bh6 {[%clk 0:00:05]} 39. Bf3 {[%clk 0:00:04]}  Qc2+ {[%clk 0:00:04]} 40. Rg2 {[%clk 0:00:04]}  Bxg5 {[%clk 0:00:04]} 41. Rxc2 {[%clk 0:00:03]}  Bxf4+ {[%clk 0:00:05]} 42. Kg1 {[%clk 0:00:03]}  Nxc2 {[%clk 0:00:06]} 43. Be2 {[%clk 0:00:03]}  Nxa3 {[%clk 0:00:06]} 44. Bd3 {[%clk 0:00:04]}  Nb5 {[%clk 0:00:06]} 45. c6 {[%clk 0:00:04]}  bxc6 {[%clk 0:00:06]} 46. Bc4 {[%clk 0:00:04]}  Bd6 {[%clk 0:00:07]} 47. Bd3 {[%clk 0:00:05]}  Nc7 {[%clk 0:00:07]} 48. Bb5 {[%clk 0:00:06]}  cxb5 {[%clk 0:00:07]} 0-1


[Site "https://www.chess.com"]

[Event "Titled Tuesday Blitz June 21 Early 2022"]
[White "Rosenberg, Evan S"]
[Black "Simonovic, Miroslav"]
[WhiteFideId "2019299"]
[BlackFideId "919152"]
[WhiteElo "2373"]
[BlackElo "2043"]
[Result "0-1"]
[Round "10"]
[TimeControl "180+1"]
[Date "2022.06.22"]
[WhiteClock "0:00:03"]
[BlackClock "0:00:18"]

1. e4 {[%clk 0:03:00]}  c5 {[%clk 0:03:00]} 2. Nc3 {[%clk 0:03:00]}  Nc6 {[%clk 0:03:00]} 3. f4 {[%clk 0:03:00]}  g6 {[%clk 0:03:00]} 4. Nf3 {[%clk 0:03:00]}  Bg7 {[%clk 0:03:00]} 5. a4 {[%clk 0:03:00]}  d6 {[%clk 0:02:58]} 6. Bb5 {[%clk 0:02:57]}  Bd7 {[%clk 0:02:57]} 7. d3 {[%clk 0:02:45]}  a6 {[%clk 0:02:56]} 8. Bxc6 {[%clk 0:02:45]}  Bxc6 {[%clk 0:02:57]} 9. O-O {[%clk 0:02:45]}  e6 {[%clk 0:02:54]} 10. Qe1 {[%clk 0:02:24]}  Ne7 {[%clk 0:02:53]} 11. f5 {[%clk 0:02:03]}  gxf5 {[%clk 0:02:51]} 12. Qg3 {[%clk 0:01:46]}  Rg8 {[%clk 0:02:24]} 13. Qh3 {[%clk 0:01:46]}  Bxc3 {[%clk 0:02:09]} 14. bxc3 {[%clk 0:01:41]}  fxe4 {[%clk 0:02:05]} 15. Ng5 {[%clk 0:01:22]}  Nf5 {[%clk 0:01:46]} 16. Nxe4 {[%clk 0:00:37]}  Qe7 {[%clk 0:00:52]} 17. Qxh7 {[%clk 0:00:25]}  O-O-O {[%clk 0:00:52]} 18. Rxf5 {[%clk 0:00:18]}  exf5 {[%clk 0:00:47]} 19. Qxf5+ {[%clk 0:00:19]}  Qe6 {[%clk 0:00:41]} 20. Qxe6+ {[%clk 0:00:16]}  fxe6 {[%clk 0:00:41]} 21. Bf4 {[%clk 0:00:14]}  Bxe4 {[%clk 0:00:40]} 22. dxe4 {[%clk 0:00:14]}  d5 {[%clk 0:00:37]} 23. exd5 {[%clk 0:00:13]}  exd5 {[%clk 0:00:36]} 24. a5 {[%clk 0:00:10]}  Rge8 {[%clk 0:00:33]} 25. h4 {[%clk 0:00:09]}  Re4 {[%clk 0:00:32]} 26. Bg5 {[%clk 0:00:08]}  Rg8 {[%clk 0:00:27]} 27. Rf1 {[%clk 0:00:06]}  Rc4 {[%clk 0:00:24]} 28. Rf5 {[%clk 0:00:05]}  d4 {[%clk 0:00:22]} 29. cxd4 {[%clk 0:00:05]}  cxd4 {[%clk 0:00:23]} 30. Rf2 {[%clk 0:00:03]}  Rc5 {[%clk 0:00:20]} 31. Rd2 {[%clk 0:00:03]}  Rxa5 {[%clk 0:00:18]} 32. Rxd4 {[%clk 0:00:03]}  Raxg5 {[%clk 0:00:17]} 33. hxg5 {[%clk 0:00:03]}  Rxg5 {[%clk 0:00:18]} 34. Kf2 {[%clk 0:00:03]}  b5 {[%clk 0:00:18]} 35. Kf3 {[%clk 0:00:03]}  Kb7 {[%clk 0:00:19]} 36. g4 {[%clk 0:00:03]}  Kb6 {[%clk 0:00:19]} 37. Kf4 {[%clk 0:00:04]}  Rg8 {[%clk 0:00:18]} 38. g5 {[%clk 0:00:04]}  a5 {[%clk 0:00:19]} 39. Kf5 {[%clk 0:00:04]}  a4 {[%clk 0:00:19]} 40. g6 {[%clk 0:00:04]}  a3 {[%clk 0:00:19]} 41. Rd3 {[%clk 0:00:04]}  b4 {[%clk 0:00:19]} 42. Rb3 {[%clk 0:00:04]}  Ka5 {[%clk 0:00:19]} 43. Rb1 {[%clk 0:00:03]}  Ka4 {[%clk 0:00:19]} 44. Kf6 {[%clk 0:00:03]}  a2 {[%clk 0:00:19]} 45. Ra1 {[%clk 0:00:03]}  Ka3 {[%clk 0:00:19]} 46. Kf7 {[%clk 0:00:03]}  Rb8 {[%clk 0:00:18]} 47. g7 {[%clk 0:00:03]}  Kb2 {[%clk 0:00:18]} 48. Rxa2+ {[%clk 0:00:03]}  Kxa2 {[%clk 0:00:18]} 49. g8=Q {[%clk 0:00:03]}  Rxg8 {[%clk 0:00:18]} 50. Kxg8 {[%clk 0:00:03]}  Kb2 {[%clk 0:00:18]} 0-1


[Site "https://www.chess.com"]

[Event "Titled Tuesday Blitz June 21 Early 2022"]
[White "Sargsyan, Anna M."]
[Black "Sukandar, Irine Kharisma"]
[WhiteFideId "13308130"]
[BlackFideId "7101937"]
[WhiteElo "2271"]
[BlackElo "2293"]
[Result "1-0"]
[Round "10"]
[TimeControl "180+1"]
[Date "2022.06.22"]
[WhiteClock "0:00:21"]
[BlackClock "0:00:01"]

1. d4 {[%clk 0:02:43]}  d5 {[%clk 0:02:58]} 2. c4 {[%clk 0:02:44]}  dxc4 {[%clk 0:02:59]} 3. Nf3 {[%clk 0:02:44]}  Nf6 {[%clk 0:02:58]} 4. e3 {[%clk 0:02:45]}  e6 {[%clk 0:02:58]} 5. Bxc4 {[%clk 0:02:45]}  a6 {[%clk 0:02:56]} 6. O-O {[%clk 0:02:45]}  c5 {[%clk 0:02:54]} 7. Bd3 {[%clk 0:02:45]}  b5 {[%clk 0:02:42]} 8. a4 {[%clk 0:02:43]}  b4 {[%clk 0:02:41]} 9. Qe2 {[%clk 0:02:44]}  Bb7 {[%clk 0:02:41]} 10. Rd1 {[%clk 0:02:44]}  Nbd7 {[%clk 0:02:39]} 11. Nbd2 {[%clk 0:02:42]}  Be7 {[%clk 0:02:32]} 12. Nc4 {[%clk 0:02:43]}  O-O {[%clk 0:02:31]} 13. Bd2 {[%clk 0:02:39]}  Qc7 {[%clk 0:02:25]} 14. Nfe5 {[%clk 0:02:35]}  Rfd8 {[%clk 0:02:18]} 15. Rac1 {[%clk 0:02:33]}  Rac8 {[%clk 0:02:12]} 16. a5 {[%clk 0:02:09]}  Nxe5 {[%clk 0:02:00]} 17. dxe5 {[%clk 0:02:07]}  Ne4 {[%clk 0:01:40]} 18. Be1 {[%clk 0:01:47]}  h6 {[%clk 0:01:19]} 19. f3 {[%clk 0:01:46]}  Ng5 {[%clk 0:01:19]} 20. Nb6 {[%clk 0:01:36]}  Rb8 {[%clk 0:01:19]} 21. Bxb4 {[%clk 0:01:27]}  Qxe5 {[%clk 0:01:16]} 22. Bc3 {[%clk 0:01:20]}  Qc7 {[%clk 0:01:03]} 23. Qc2 {[%clk 0:01:07]}  Bd6 {[%clk 0:00:51]} 24. f4 {[%clk 0:01:05]}  Bxf4 {[%clk 0:00:35]} 25. exf4 {[%clk 0:01:01]}  Qxf4 {[%clk 0:00:35]} 26. Qf2 {[%clk 0:00:44]}  Qg4 {[%clk 0:00:35]} 27. Qg3 {[%clk 0:00:43]}  Qh5 {[%clk 0:00:20]} 28. h4 {[%clk 0:00:42]}  c4 {[%clk 0:00:09]} 29. Bxc4 {[%clk 0:00:31]}  Rxd1+ {[%clk 0:00:08]} 30. Rxd1 {[%clk 0:00:28]}  Qxd1+ {[%clk 0:00:08]} 31. Kh2 {[%clk 0:00:28]}  Qh5 {[%clk 0:00:01]} 32. Qxb8+ {[%clk 0:00:28]}  Kh7 {[%clk 0:00:01]} 33. Bd3+ {[%clk 0:00:20]}  f5 {[%clk 0:00:01]} 34. Qg3 {[%clk 0:00:21]} 1-0


[Site "https://www.chess.com"]

[Event "Titled Tuesday Blitz June 21 Early 2022"]
[White "Svane, Frederik"]
[Black "Jobava, Baadur"]
[WhiteFideId "12923044"]
[BlackFideId "13601520"]
[WhiteElo "2459"]
[BlackElo "2617"]
[Result "1-0"]
[Round "10"]
[TimeControl "180+1"]
[Date "2022.06.21"]
[WhiteClock "0:00:43"]
[BlackClock "0:00:02"]

1. e4 {[%clk 0:03:00]}  e6 {[%clk 0:02:58]} 2. d4 {[%clk 0:03:01]}  d5 {[%clk 0:02:59]} 3. Nd2 {[%clk 0:03:01]}  dxe4 {[%clk 0:03:00]} 4. Nxe4 {[%clk 0:03:02]}  Bd7 {[%clk 0:03:01]} 5. Nf3 {[%clk 0:03:02]}  Bc6 {[%clk 0:03:01]} 6. Bd3 {[%clk 0:03:03]}  Nd7 {[%clk 0:03:02]} 7. O-O {[%clk 0:03:02]}  Ngf6 {[%clk 0:03:03]} 8. Ng3 {[%clk 0:03:01]}  g6 {[%clk 0:03:03]} 9. Re1 {[%clk 0:02:47]}  Bg7 {[%clk 0:03:03]} 10. c3 {[%clk 0:02:39]}  O-O {[%clk 0:03:03]} 11. Bf4 {[%clk 0:02:37]}  b6 {[%clk 0:03:03]} 12. Qe2 {[%clk 0:02:33]}  Bb7 {[%clk 0:03:02]} 13. Rad1 {[%clk 0:02:33]}  Re8 {[%clk 0:03:01]} 14. Ne5 {[%clk 0:02:30]}  a6 {[%clk 0:02:54]} 15. Bg5 {[%clk 0:02:10]}  h6 {[%clk 0:02:53]} 16. Bc1 {[%clk 0:02:10]}  Qe7 {[%clk 0:02:51]} 17. Nxd7 {[%clk 0:02:09]}  Qxd7 {[%clk 0:02:49]} 18. Ne4 {[%clk 0:02:03]}  Nxe4 {[%clk 0:02:48]} 19. Bxe4 {[%clk 0:02:03]}  Bxe4 {[%clk 0:02:49]} 20. Qxe4 {[%clk 0:02:03]}  a5 {[%clk 0:02:47]} 21. h4 {[%clk 0:02:01]}  h5 {[%clk 0:02:47]} 22. Rd3 {[%clk 0:01:56]}  a4 {[%clk 0:02:47]} 23. g4 {[%clk 0:01:51]}  hxg4 {[%clk 0:02:42]} 24. Qxg4 {[%clk 0:01:52]}  Qd5 {[%clk 0:02:41]} 25. Rg3 {[%clk 0:01:46]}  Ra5 {[%clk 0:02:36]} 26. Bf4 {[%clk 0:01:42]}  Qxa2 {[%clk 0:02:25]} 27. Be5 {[%clk 0:01:40]}  a3 {[%clk 0:02:00]} 28. bxa3 {[%clk 0:01:32]}  Qd2 {[%clk 0:01:54]} 29. Ree3 {[%clk 0:01:31]}  Bxe5 {[%clk 0:01:49]} 30. dxe5 {[%clk 0:01:30]}  Rd8 {[%clk 0:01:48]} 31. Kg2 {[%clk 0:01:25]}  Qd5+ {[%clk 0:01:47]} 32. Rgf3 {[%clk 0:01:23]}  Kh7 {[%clk 0:00:34]} 33. Kh2 {[%clk 0:00:50]}  Qd7 {[%clk 0:00:33]} 34. h5 {[%clk 0:00:47]}  Rg8 {[%clk 0:00:24]} 35. Qg5 {[%clk 0:00:47]}  Ra4 {[%clk 0:00:11]} 36. Rh3 {[%clk 0:00:46]}  Kg7 {[%clk 0:00:09]} 37. hxg6 {[%clk 0:00:44]}  Kf8 {[%clk 0:00:09]} 38. g7+ {[%clk 0:00:42]}  Ke8 {[%clk 0:00:08]} 39. Rh8 {[%clk 0:00:43]}  Qd1 {[%clk 0:00:02]} 40. Rxg8+ {[%clk 0:00:43]} 1-0


[Site "https://www.chess.com"]

[Event "Titled Tuesday Blitz June 21 Early 2022"]
[White "Taichman, Ori"]
[Black "Luo, Terry"]
[WhiteFideId "2804069"]
[BlackFideId "30931045"]
[WhiteElo "2227"]
[BlackElo "2024"]
[Result "1/2-1/2"]
[Round "10"]
[TimeControl "180+1"]
[Date "2022.06.22"]
[WhiteClock "0:00:53"]
[BlackClock "0:01:54"]

1. e4 {[%clk 0:03:00]}  c5 {[%clk 0:03:00]} 2. Nf3 {[%clk 0:03:00]}  d6 {[%clk 0:03:00]} 3. d4 {[%clk 0:02:59]}  cxd4 {[%clk 0:03:01]} 4. Nxd4 {[%clk 0:03:00]}  Nf6 {[%clk 0:03:01]} 5. Nc3 {[%clk 0:03:01]}  Nc6 {[%clk 0:03:02]} 6. Bg5 {[%clk 0:03:01]}  e6 {[%clk 0:03:02]} 7. Qd2 {[%clk 0:03:01]}  a6 {[%clk 0:03:02]} 8. O-O-O {[%clk 0:03:01]}  Bd7 {[%clk 0:03:03]} 9. f4 {[%clk 0:03:00]}  Be7 {[%clk 0:03:03]} 10. Kb1 {[%clk 0:02:53]}  b5 {[%clk 0:03:01]} 11. Nf3 {[%clk 0:02:48]}  b4 {[%clk 0:03:00]} 12. Bxf6 {[%clk 0:02:44]}  Bxf6 {[%clk 0:02:58]} 13. Ne2 {[%clk 0:02:39]}  Be7 {[%clk 0:02:56]} 14. Ned4 {[%clk 0:02:38]}  Nxd4 {[%clk 0:02:53]} 15. Qxd4 {[%clk 0:02:37]}  O-O {[%clk 0:02:53]} 16. e5 {[%clk 0:02:34]}  d5 {[%clk 0:02:53]} 17. h4 {[%clk 0:02:30]}  Qa5 {[%clk 0:02:49]} 18. h5 {[%clk 0:02:29]}  Qc5 {[%clk 0:02:45]} 19. g4 {[%clk 0:02:26]}  Rfc8 {[%clk 0:02:42]} 20. Bd3 {[%clk 0:02:21]}  Qxd4 {[%clk 0:02:41]} 21. Nxd4 {[%clk 0:02:22]}  Bc5 {[%clk 0:02:41]} 22. Nb3 {[%clk 0:02:20]}  Be3 {[%clk 0:02:36]} 23. Rdf1 {[%clk 0:02:15]}  a5 {[%clk 0:02:36]} 24. Rf3 {[%clk 0:02:15]}  d4 {[%clk 0:02:35]} 25. Be4 {[%clk 0:02:14]}  Bc6 {[%clk 0:02:34]} 26. Nc5 {[%clk 0:02:11]}  a4 {[%clk 0:02:24]} 27. Bxc6 {[%clk 0:01:58]}  Rxc6 {[%clk 0:02:22]} 28. Nd3 {[%clk 0:01:55]}  Rb8 {[%clk 0:02:12]} 29. Rh2 {[%clk 0:01:45]}  b3 {[%clk 0:02:10]} 30. axb3 {[%clk 0:01:45]}  axb3 {[%clk 0:02:10]} 31. cxb3 {[%clk 0:01:46]}  Rxb3 {[%clk 0:02:10]} 32. Rc2 {[%clk 0:01:45]}  Rxc2 {[%clk 0:02:09]} 33. Kxc2 {[%clk 0:01:46]}  Rb8 {[%clk 0:02:08]} 34. b4 {[%clk 0:01:12]}  Kf8 {[%clk 0:02:07]} 35. Rf1 {[%clk 0:01:07]}  Rc8+ {[%clk 0:02:06]} 36. Nc5 {[%clk 0:01:07]}  d3+ {[%clk 0:02:02]} 37. Kxd3 {[%clk 0:01:07]}  Bxc5 {[%clk 0:02:00]} 38. bxc5 {[%clk 0:01:08]}  Rxc5 {[%clk 0:02:00]} 39. Kd4 {[%clk 0:01:04]}  Rd5+ {[%clk 0:02:00]} 40. Ke4 {[%clk 0:01:04]}  Ra5 {[%clk 0:01:58]} 41. Rd1 {[%clk 0:01:03]}  Ra4+ {[%clk 0:01:58]} 42. Rd4 {[%clk 0:01:03]}  Ra1 {[%clk 0:01:53]} 43. Rd8+ {[%clk 0:01:03]}  Ke7 {[%clk 0:01:53]} 44. Rh8 {[%clk 0:01:04]}  h6 {[%clk 0:01:52]} 45. g5 {[%clk 0:01:04]}  hxg5 {[%clk 0:01:52]} 46. fxg5 {[%clk 0:01:04]}  Re1+ {[%clk 0:01:52]} 47. Kf4 {[%clk 0:01:04]}  Rf1+ {[%clk 0:01:52]} 48. Kg4 {[%clk 0:00:54]}  Rg1+ {[%clk 0:01:52]} 49. Kf4 {[%clk 0:00:53]}  Rf1+ {[%clk 0:01:53]} 50. Kg4 {[%clk 0:00:53]}  Rg1+ {[%clk 0:01:53]} 51. Kh4 {[%clk 0:00:53]}  Rh1+ {[%clk 0:01:53]} 52. Kg3 {[%clk 0:00:53]}  Rg1+ {[%clk 0:01:53]} 53. Kf4 {[%clk 0:00:53]}  Rf1+ {[%clk 0:01:54]} 1/2-1/2


[Site "https://www.chess.com"]

[Event "Titled Tuesday Blitz June 21 Early 2022"]
[White "Tasev, Dejan"]
[Black "Tan, Zhongyi"]
[WhiteFideId "936618"]
[BlackFideId "8603642"]
[WhiteElo "2253"]
[BlackElo "2510"]
[Result "0-1"]
[Round "10"]
[TimeControl "180+1"]
[Date "2022.06.21"]
[WhiteClock "0:00:19"]
[BlackClock "0:00:54"]

1. e4 {[%clk 0:03:00]}  e5 {[%clk 0:02:59]} 2. Nf3 {[%clk 0:03:00]}  Nf6 {[%clk 0:02:59]} 3. Nxe5 {[%clk 0:03:00]}  d6 {[%clk 0:02:55]} 4. Nf3 {[%clk 0:02:59]}  Nxe4 {[%clk 0:02:55]} 5. Nc3 {[%clk 0:02:59]}  Nxc3 {[%clk 0:02:55]} 6. dxc3 {[%clk 0:03:00]}  Be7 {[%clk 0:02:56]} 7. Be3 {[%clk 0:03:00]}  O-O {[%clk 0:02:56]} 8. Qd2 {[%clk 0:03:00]}  Nd7 {[%clk 0:02:55]} 9. O-O-O {[%clk 0:03:00]}  c6 {[%clk 0:02:56]} 10. Bd3 {[%clk 0:02:59]}  d5 {[%clk 0:02:55]} 11. h4 {[%clk 0:02:57]}  Re8 {[%clk 0:02:53]} 12. Ng5 {[%clk 0:02:46]}  h6 {[%clk 0:02:33]} 13. f3 {[%clk 0:02:30]}  Nc5 {[%clk 0:02:26]} 14. g4 {[%clk 0:01:41]}  b6 {[%clk 0:01:47]} 15. Kb1 {[%clk 0:01:33]}  Bf6 {[%clk 0:01:37]} 16. Rde1 {[%clk 0:01:13]}  Bd7 {[%clk 0:01:29]} 17. Nxf7 {[%clk 0:00:40]}  Kxf7 {[%clk 0:01:28]} 18. g5 {[%clk 0:00:39]}  Nxd3 {[%clk 0:01:25]} 19. Qxd3 {[%clk 0:00:29]}  hxg5 {[%clk 0:01:18]} 20. hxg5 {[%clk 0:00:28]}  Bxg5 {[%clk 0:01:18]} 21. f4 {[%clk 0:00:28]}  Bf6 {[%clk 0:01:12]} 22. Rhg1 {[%clk 0:00:27]}  Re4 {[%clk 0:01:11]} 23. Qd2 {[%clk 0:00:21]}  Bf5 {[%clk 0:01:10]} 24. Qd1 {[%clk 0:00:19]}  Qe7 {[%clk 0:00:59]} 25. Qh5+ {[%clk 0:00:19]}  g6 {[%clk 0:00:55]} 26. Qh7+ {[%clk 0:00:19]}  Bg7 {[%clk 0:00:54]} 0-1


[Site "https://www.chess.com"]

[Event "Titled Tuesday Blitz June 21 Early 2022"]
[White "Terry, Renato"]
[Black "Kosakowski, Jakub"]
[WhiteFideId "3803457"]
[BlackFideId "1185080"]
[WhiteElo "2577"]
[BlackElo "2476"]
[Result "0-1"]
[Round "10"]
[TimeControl "180+1"]
[Date "2022.06.21"]
[WhiteClock "0:00:01"]
[BlackClock "0:00:20"]

1. d4 {[%clk 0:03:00]}  Nf6 {[%clk 0:03:00]} 2. Bg5 {[%clk 0:03:01]}  d5 {[%clk 0:02:58]} 3. Bxf6 {[%clk 0:03:01]}  gxf6 {[%clk 0:02:59]} 4. e3 {[%clk 0:03:01]}  c5 {[%clk 0:02:59]} 5. c3 {[%clk 0:03:02]}  e6 {[%clk 0:02:54]} 6. Nf3 {[%clk 0:03:01]}  Nc6 {[%clk 0:02:54]} 7. Nbd2 {[%clk 0:03:01]}  Bd6 {[%clk 0:02:53]} 8. Be2 {[%clk 0:02:55]}  f5 {[%clk 0:02:52]} 9. O-O {[%clk 0:02:46]}  O-O {[%clk 0:02:48]} 10. dxc5 {[%clk 0:02:46]}  Bxc5 {[%clk 0:02:49]} 11. c4 {[%clk 0:02:46]}  dxc4 {[%clk 0:02:41]} 12. Nxc4 {[%clk 0:02:45]}  b6 {[%clk 0:02:40]} 13. a3 {[%clk 0:02:30]}  Qf6 {[%clk 0:02:29]} 14. Rc1 {[%clk 0:02:21]}  Bb7 {[%clk 0:02:27]} 15. b4 {[%clk 0:02:20]}  Be7 {[%clk 0:02:26]} 16. b5 {[%clk 0:02:01]}  Na5 {[%clk 0:02:06]} 17. Nxa5 {[%clk 0:02:01]}  bxa5 {[%clk 0:02:07]} 18. Qa4 {[%clk 0:02:01]}  Kh8 {[%clk 0:01:59]} 19. Qxa5 {[%clk 0:01:45]}  Rg8 {[%clk 0:01:58]} 20. g3 {[%clk 0:01:28]}  Bd5 {[%clk 0:01:47]} 21. Qc3 {[%clk 0:01:15]}  Rgc8 {[%clk 0:01:28]} 22. Qxc8+ {[%clk 0:00:42]}  Rxc8 {[%clk 0:01:29]} 23. Rxc8+ {[%clk 0:00:42]}  Kg7 {[%clk 0:01:29]} 24. Rc7 {[%clk 0:00:32]}  Bxa3 {[%clk 0:01:25]} 25. Rxa7 {[%clk 0:00:32]}  Qb2 {[%clk 0:01:24]} 26. Ng5 {[%clk 0:00:09]}  Kg6 {[%clk 0:01:13]} 27. Nh3 {[%clk 0:00:06]}  Bd6 {[%clk 0:01:06]} 28. Rd7 {[%clk 0:00:05]}  Be5 {[%clk 0:00:56]} 29. Rxd5 {[%clk 0:00:05]}  exd5 {[%clk 0:00:56]} 30. Bf3 {[%clk 0:00:05]}  Qxb5 {[%clk 0:00:56]} 31. Rd1 {[%clk 0:00:06]}  d4 {[%clk 0:00:32]} 32. exd4 {[%clk 0:00:07]}  Bd6 {[%clk 0:00:33]} 33. Kg2 {[%clk 0:00:08]}  h5 {[%clk 0:00:32]} 34. Ng1 {[%clk 0:00:08]}  h4 {[%clk 0:00:32]} 35. Nh3 {[%clk 0:00:08]}  Qb3 {[%clk 0:00:31]} 36. Rc1 {[%clk 0:00:05]}  Qd3 {[%clk 0:00:29]} 37. Rc6 {[%clk 0:00:06]}  Qxd4 {[%clk 0:00:29]} 38. Nf4+ {[%clk 0:00:05]}  Kg7 {[%clk 0:00:30]} 39. Nh3 {[%clk 0:00:02]}  Be5 {[%clk 0:00:28]} 40. Rc2 {[%clk 0:00:02]}  Qd3 {[%clk 0:00:28]} 41. Re2 {[%clk 0:00:02]}  Bd6 {[%clk 0:00:27]} 42. Re1 {[%clk 0:00:02]}  Bc5 {[%clk 0:00:26]} 43. Re2 {[%clk 0:00:03]}  Qd4 {[%clk 0:00:24]} 44. Nf4 {[%clk 0:00:03]}  Bb6 {[%clk 0:00:22]} 45. Nh5+ {[%clk 0:00:03]}  Kh6 {[%clk 0:00:20]} 46. Nf4 {[%clk 0:00:04]}  Qc3 {[%clk 0:00:19]} 47. Nd5 {[%clk 0:00:04]}  h3+ {[%clk 0:00:19]} 48. Kxh3 {[%clk 0:00:02]}  Qxf3 {[%clk 0:00:20]} 49. Rd2 {[%clk 0:00:02]}  Bxf2 {[%clk 0:00:19]} 50. Nf4 {[%clk 0:00:03]}  Be3 {[%clk 0:00:19]} 51. Rd3 {[%clk 0:00:03]}  Qg4+ {[%clk 0:00:18]} 52. Kg2 {[%clk 0:00:03]}  Bxf4 {[%clk 0:00:19]} 53. Rf3 {[%clk 0:00:02]}  Be5 {[%clk 0:00:19]} 54. h3 {[%clk 0:00:02]}  Qe4 {[%clk 0:00:19]} 55. Kf2 {[%clk 0:00:03]}  Bd4+ {[%clk 0:00:20]} 56. Kg2 {[%clk 0:00:01]}  Qe2+ {[%clk 0:00:20]} 0-1


[Site "https://www.chess.com"]